bitfinex/quotes_SOLUSD_20251103
["timestamp","ask_amount","ask_price","bid_price","bid_amount"]
[1762193697840,43.27,169.49,169.46,20.65384161]
[1762193698144,0.67,169.51,169.46,20.65384161]
[1762193698324,5.5047375,169.51,169.46,20.65384161]
[1762193698851,0.67,169.5,169.46,20.65384161]
[1762193699328,0.67,169.5,169.44,30.44510719]
[1762193699528,0.67,169.5,169.45,0.69]
[1762193700861,5.5047375,169.5,169.46,20.65384161]
[1762193701064,4.8347375,169.47,169.44,5.90179414]
[1762193701235,4.8347375,169.46,169.43,5.90203541]
[1762193701429,4.8347375,169.46,169.43,6.59203541]
[1762193701629,4.8347375,169.46,169.44,0.69]
[1762193701828,4.8347375,169.47,169.44,0.69]
[1762193702438,4.8347375,169.45,169.42,5.90244854]
[1762193702938,4.8347375,169.45,169.43,0.66]
[1762193703439,4.8347375,169.45,169.42,20.65867566]
[1762193703638,0.69,169.47,169.42,20.65867566]
[1762193704027,6.59075371,169.47,169.42,20.65867566]
[1762193704229,4.8347375,169.44,169.42,5.90244854]
[1762193704625,4.8347375,169.44,169.42,6.56244854]
[1762193705042,37.6467375,169.46,169.43,0.66]
[1762193705357,20.592,169.48,169.43,0.66]
[1762193705668,3.96446644,169.47,169.43,0.66]
[1762193705845,3.96446644,169.46,169.43,0.66]
[1762193706045,0.69,169.48,169.43,0.66]
[1762193706249,3.96425758,169.47,169.43,0.66]
[1762193706436,3.96425758,169.46,169.43,0.66]
[1762193706750,0.69,169.48,169.44,20.6562795]
[1762193706957,3.96396518,169.47,169.44,20.6562795]
[1762193707155,0.69,169.48,169.44,20.6562795]
[1762193707156,0.69,169.48,169.44,21.3162795]
[1762193707360,3.9635551,169.47,169.44,21.3162795]
[1762193707553,0.69,169.48,169.44,21.3162795]
[1762193707753,3.9635551,169.47,169.44,21.3162795]
[1762193707959,12.22,169.49,169.45,0.66]
[1762193708276,17.7447375,169.54,169.46,72.00882769]
[1762193708561,8.79685837,169.53,169.46,72.00882769]
[1762193708767,3.96212087,169.52,169.48,20.65140428]
[1762193708936,3.96212087,169.51,169.48,20.65140428]
[1762193709140,5.5247375,169.51,169.48,5.90040122]
[1762193709341,8.7951499,169.5,169.48,5.90040122]
[1762193709647,5.5247375,169.51,169.48,5.90040122]
[1762193709947,3.95878076,169.5,169.48,5.90040122]
[1762193710151,3.95878076,169.49,169.48,5.90040122]
[1762193711149,3.95878076,169.49,169.46,20.65384161]
[1762193711370,1.85557422,169.5,169.46,21.31384161]
[1762193711567,3.95514372,169.49,169.46,21.31384161]
[1762193711763,3.95483296,169.48,169.47,0.66]
[1762193712077,3.95483296,169.48,169.46,20.65384161]
[1762193712373,4.83213271,169.5,169.46,21.31384161]
[1762193712671,3.95458727,169.49,169.46,21.31384161]
[1762193712875,3.95458727,169.48,169.46,21.31384161]
[1762193713170,17.74213271,169.54,169.48,20.65140428]
[1762193713344,3.9559991,169.53,169.48,21.31140428]
[1762193713544,4.6459991,169.52,169.48,21.31140428]
[1762193713746,3.9559991,169.51,169.48,21.31140428]
[1762193713947,0.69,169.52,169.48,21.31140428]
[1762193714148,3.95649153,169.51,169.48,21.31140428]
[1762193714356,0.69,169.52,169.48,21.31140428]
[1762193714560,3.95569065,169.51,169.49,0.66]
[1762193714767,5.52213271,169.53,169.49,0.66]
[1762193714961,3.95535222,169.52,169.49,0.66]
[1762193715270,3.95535222,169.51,169.5,5.89970501]
[1762193716745,3.95535222,169.51,169.5,6.55970501]
[1762193716950,25.52437987,169.55,169.5,81.09779523]
[1762193716951,3.95474444,169.54,169.5,81.09779523]
[1762193717173,20.592,169.55,169.52,20.64653137]
[1762193717374,3.95348142,169.54,169.52,20.64653137]
[1762193717569,20.592,169.55,169.53,0.66]
[1762193717778,3.95344429,169.54,169.53,0.66]
[1762193718256,3.95344429,169.54,169.52,20.64653137]
[1762193718465,20.592,169.55,169.52,21.30653137]
[1762193718652,3.95255988,169.54,169.52,21.30653137]
[1762193718854,5.52213271,169.57,169.52,21.30653137]
[1762193719062,8.78419828,169.56,169.52,21.30653137]
[1762193719262,3.95206557,169.55,169.52,21.30653137]
[1762193719467,3.95206557,169.54,169.52,21.30653137]
[1762193719694,8.78351177,169.53,169.47,20.592]
[1762193719875,8.78351177,169.53,169.42,0.66]
[1762193719876,25.42413271,169.49,169.42,0.66]
[1762193720046,4.83213271,169.46,169.42,0.66]
[1762193720386,4.83213271,169.47,169.42,0.66]
[1762193720556,3.95111911,169.46,169.42,0.66]
[1762193720758,4.83213271,169.47,169.42,0.66]
[1762193721056,3.95315645,169.46,169.42,0.66]
[1762193721260,4.83213271,169.47,169.43,20.65749866]
[1762193721460,8.78771593,169.46,169.43,20.65749866]
[1762193721656,4.83213271,169.46,169.43,5.90214247]
[1762193721854,8.78722841,169.45,169.43,6.56214247]
[1762193722054,4.83213271,169.45,169.43,6.56214247]
[1762193722973,4.83213271,169.46,169.43,6.56214247]
[1762193723152,3.95479972,169.45,169.43,6.56214247]
[1762193723350,4.83213271,169.46,169.43,6.56214247]
[1762193723552,3.95529892,169.45,169.43,6.56214247]
[1762193723878,4.83213271,169.46,169.43,6.56214247]
[1762193724056,3.95571148,169.45,169.43,6.56214247]
[1762193724255,4.83213271,169.46,169.43,6.56214247]
[1762193724475,3.95639189,169.45,169.43,6.56214247]
[1762193724800,4.83213271,169.46,169.43,6.56214247]
[1762193724958,3.95631553,169.45,169.43,6.56214247]
[1762193725169,32.792,169.49,169.44,0.66]
[1762193725470,8.78929686,169.48,169.44,0.66]
[1762193725685,3.95716415,169.47,169.44,0.66]
[1762193725892,0.69,169.48,169.44,0.66]
[1762193726183,3.95398942,169.47,169.44,0.66]
[1762193726482,0.69,169.48,169.44,0.66]
[1762193726772,32.792,169.49,169.44,0.66]
[1762193726956,3.95240052,169.48,169.44,0.66]
[1762193727157,3.95305905,169.47,169.45,20.65506048]
[1762193727361,33.482,169.49,169.45,20.65506048]
[1762193727557,3.95356778,169.48,169.45,5.90144585]
[1762193727762,3.95356778,169.47,169.45,5.90144585]
[1762193727964,38.31413271,169.49,169.45,5.90144585]
[1762193728162,3.95431211,169.48,169.45,5.90144585]
[1762193728368,3.95431211,169.47,169.45,5.90144585]
[1762193728551,38.31413271,169.49,169.45,5.90144585]
[1762193728752,3.95472669,169.48,169.45,21.32506048]
[1762193728952,3.95472669,169.47,169.46,0.67]
[1762193729260,3.95472669,169.47,169.46,5.9010976]
[1762193730779,3.95472669,169.47,169.44,5.90179414]
[1762193730984,3.95472669,169.46,169.44,5.90179414]
[1762193731270,12.2,169.49,169.45,0.67]
[1762193731480,3.95397577,169.48,169.45,0.67]
[1762193731657,3.95397577,169.47,169.45,0.67]
[1762193731859,12.2,169.49,169.45,0.67]
[1762193732058,3.95357538,169.48,169.45,0.67]
[1762193732379,12.2,169.49,169.45,0.67]
[1762193732589,9.48542704,169.48,169.44,5.90179414]
[1762193732761,3.95329433,169.47,169.44,5.90179414]
[1762193732961,0.7,169.48,169.44,6.55179414]
[1762193733263,3.95258685,169.47,169.44,5.90179414]
[1762193733456,3.95258685,169.46,169.44,6.55179414]
[1762193733661,17.73213271,169.49,169.44,5.90179414]
[1762193733854,3.95169313,169.48,169.44,5.90179414]
[1762193734060,3.95169313,169.47,169.44,6.55179414]
[1762193734262,3.95169313,169.46,169.44,5.90179414]
[1762193734466,12.2,169.49,169.45,0.65]
[1762193734467,12.9,169.49,169.45,0.65]
[1762193734669,3.94980549,169.48,169.45,0.65]
[1762193734870,3.94980549,169.47,169.45,0.65]
[1762193735072,3.94980549,169.46,169.45,0.65]
[1762193735567,12.2,169.49,169.45,21.30506048]
[1762193735890,3.94800877,169.48,169.46,0.65]
[1762193736191,55.5,169.5,169.46,0.65]
[1762193736386,3.94900574,169.49,169.46,0.65]
[1762193736678,3.94821664,169.48,169.46,0.65]
[1762193736872,55.5,169.5,169.46,0.65]
[1762193737082,3.94686771,169.49,169.46,0.65]
[1762193737298,4.9352708,169.54,169.47,9.78882769]
[1762193737495,3.94809107,169.53,169.49,59.78882769]
[1762193737661,5.6352708,169.57,169.51,9.78882769]
[1762193737662,12.9,169.57,169.51,9.78882769]
[1762193737965,4.64949189,169.56,169.5,12.2]
[1762193738155,3.94949189,169.55,169.5,12.2]
[1762193738359,3.94949189,169.54,169.5,12.2]
[1762193738583,0.7,169.54,169.5,12.2]
[1762193738772,0.7,169.56,169.5,12.85]
[1762193739082,3.95019059,169.55,169.5,12.85]
[1762193739270,3.95019059,169.54,169.51,0.65]
[1762193739473,0.7,169.56,169.51,0.65]
[1762193739781,3.94942577,169.55,169.52,5.89900896]
[1762193739988,4.9352708,169.59,169.52,20.64653137]
[1762193740181,6.41615888,169.62,169.53,72.63882769]
[1762193740182,3.9492802,169.58,169.53,72.63882769]
[1762193740368,3.9492802,169.57,169.55,9.78882769]
[1762193740564,3.9470503,169.56,169.55,9.78882769]
[1762193740773,3.9470503,169.56,169.52,6.54900896]
[1762193741085,20.592,169.57,169.53,0.65]
[1762193741274,12.9,169.6,169.54,9.78882769]
[1762193741594,3.9450649,169.59,169.55,0.65]
[1762193741766,3.9450649,169.58,169.56,20.64166076]
[1762193742068,0.2,169.66,169.56,20.64166076]
[1762193742069,12.9,169.61,169.56,20.64166076]
[1762193742391,3.94494254,169.6,169.56,21.29166076]
[1762193742576,3.94494254,169.59,169.56,21.29166076]
[1762193742889,12.9,169.61,169.56,20.64166076]
[1762193743187,3.94546781,169.6,169.58,5.8969218]
[1762193743394,3.94546781,169.59,169.58,5.8969218]
[1762193743975,3.94546781,169.62,169.58,20.63922631]
[1762193744174,3.94546781,169.61,169.58,21.28922631]
[1762193744381,3.94546781,169.6,169.58,6.5469218]
[1762193744574,0.7,169.62,169.58,6.5469218]
[1762193744897,0.7,169.62,169.57,5.89718888]
[1762193744898,3.9441994,169.61,169.57,5.89718888]
[1762193745082,3.9441994,169.6,169.57,5.89718888]
[1762193745290,0.7,169.61,169.57,5.89718888]
[1762193745487,3.9429295,169.6,169.57,5.89718888]
[1762193745681,3.9429295,169.59,169.57,5.89718888]
[1762193745889,0.7,169.6,169.57,5.89718888]
[1762193746200,3.94222087,169.59,169.57,5.89718888]
[1762193746495,4.64138782,169.61,169.57,5.89718888]
[1762193746695,3.94127637,169.6,169.55,20.6421005]
[1762193746872,38.6872512,169.63,169.56,10.43882769]
[1762193746873,33.492,169.63,169.56,10.43882769]
[1762193747078,3.94149634,169.62,169.56,10.43882769]
[1762193747380,3.94149634,169.61,169.57,0.65]
[1762193747583,3.94149634,169.62,169.57,0.65]
[1762193747876,20.592,169.63,169.57,12.85]
[1762193748196,3.94050067,169.62,169.57,12.85]
[1762193748497,25.41672857,169.58,169.52,0.65]
[1762193748675,4.63750846,169.57,169.52,6.5489169]
[1762193748870,3.93757637,169.57,169.53,0.65]
[1762193749186,20.592,169.58,169.53,0.65]
[1762193749397,21.292,169.58,169.53,0.65]
[1762193750595,28.73993938,169.58,169.54,20.64409578]
[1762193750794,21.292,169.58,169.54,20.64409578]
[1762193750975,21.292,169.58,169.54,21.29409578]
[1762193751176,20.592,169.58,169.54,20.64409578]
[1762193751376,12.2,169.59,169.55,0.65]
[1762193751575,12.9,169.59,169.55,0.65]
[1762193752387,12.9,169.59,169.56,20.64166076]
[1762193752698,12.2,169.59,169.56,20.64166076]
[1762193752894,12.2,169.59,169.56,21.29166076]
[1762193754197,0.7,169.61,169.56,21.29166076]
[1762193754396,24.53114764,169.6,169.57,0.65]
[1762193754589,20.592,169.6,169.57,0.65]
[1762193754784,33.472,169.61,169.56,20.64166076]
[1762193754989,4.63790771,169.6,169.56,21.29166076]
[1762193755903,0.7,169.6,169.56,21.29166076]
[1762193757205,42.6,169.6,169.56,0.65]
[1762193758000,43.3,169.6,169.56,0.65]
[1762193758492,43.3,169.6,169.57,5.89726956]
[1762193758696,12.08326218,169.59,169.54,21.29385502]
[1762193758992,8.14793938,169.58,169.54,20.64385502]
[1762193759182,12.0829637,169.58,169.54,20.64385502]
[1762193759389,0.7,169.57,169.54,20.64385502]
[1762193760313,12.18,169.58,169.54,21.29385502]
[1762193760500,12.88,169.58,169.54,21.29385502]
[1762193760885,12.18,169.58,169.54,20.64385502]
[1762193761199,0.7,169.57,169.54,20.64385502]
[1762193762408,12.18,169.58,169.54,0.68]
[1762193762719,12.9,169.58,169.54,0.68]
[1762193763621,12.9,169.58,169.55,5.8979652]
[1762193764127,20.592,169.53,169.46,0.68]
[1762193764406,2.9000305,169.48,169.44,5.90179414]
[1762193764591,2.9000305,169.47,169.44,5.90179414]
[1762193764824,2.9000305,169.45,169.39,0.1]
[1762193765008,2.9000305,169.43,169.39,0.1]
[1762193765308,12.18,169.42,169.39,0.1]
[1762193765517,0.72,169.44,169.39,0.78]
[1762193765891,12.2,169.43,169.4,5.90318772]
[1762193766224,0.86216157,169.47,169.4,5.90318772]
[1762193766411,0.86216157,169.47,169.41,0.68]
[1762193766412,12.2,169.46,169.41,0.68]
[1762193766605,40.2499648,169.46,169.41,0.68]
[1762193766803,0.72,169.45,169.41,0.68]
[1762193767008,8.1779648,169.45,169.41,0.68]
[1762193767729,0.72,169.45,169.42,5.90249085]
[1762193768015,0.72,169.45,169.39,0.1]
[1762193768016,20.592,169.43,169.39,6.00341652]
[1762193768188,12.2,169.43,169.39,6.68341652]
[1762193768391,32.792,169.43,169.4,0.68]
[1762193768804,32.792,169.43,169.39,20.76225706]
[1762193769000,32.792,169.43,169.39,21.44225706]
[1762193769195,20.592,169.43,169.39,20.76225706]
[1762193769399,12.2,169.43,169.4,0.68]
[1762193769716,0.72,169.46,169.4,0.68]
[1762193770015,12.2,169.45,169.41,5.90283926]
[1762193770226,19.6579648,169.45,169.41,5.90283926]
[1762193770398,8.1779648,169.44,169.41,5.90283926]
[1762193770599,0.72,169.44,169.41,5.90283926]
[1762193770820,19.6579648,169.45,169.41,5.90283926]
[1762193771018,20.3779648,169.45,169.41,5.90283926]
[1762193771238,42.6,169.48,169.42,0.68]
[1762193771408,0.72,169.5,169.43,9.78882769]
[1762193771602,12.2,169.49,169.43,10.46882769]
[1762193771930,20.592,169.46,169.4,5.90318772]
[1762193772126,12.2,169.45,169.4,5.90318772]
[1762193772295,12.92,169.45,169.4,5.90318772]
[1762193772494,0.72,169.44,169.4,20.66115702]
[1762193772805,0.72,169.44,169.4,21.34115702]
[1762193773015,12.2,169.45,169.41,9.78882769]
[1762193773206,20.592,169.47,169.41,10.46882769]
[1762193773408,20.592,169.47,169.43,9.78882769]
[1762193773730,0.72,169.46,169.43,9.78882769]
[1762193774322,20.592,169.47,169.44,20.6562795]
[1762193774530,21.312,169.47,169.44,20.6562795]
[1762193775232,20.592,169.47,169.44,20.6562795]
[1762193775397,12.22,169.48,169.45,0.68]
[1762193775597,12.22,169.48,169.44,20.6562795]
[1762193775806,12.94,169.48,169.44,20.6562795]
[1762193776017,12.22,169.48,169.44,20.6562795]
[1762193776323,0.72,169.47,169.44,20.6562795]
[1762193776620,12.22,169.48,169.45,0.68]
[1762193777195,12.22,169.48,169.44,20.6562795]
[1762193777396,12.22,169.48,169.44,21.3362795]
[1762193777697,12.94,169.48,169.44,21.3362795]
[1762193777897,12.94,169.48,169.44,20.6562795]
[1762193778097,12.94,169.48,169.44,21.3362795]
[1762193778298,12.22,169.48,169.44,20.6562795]
[1762193778522,12.22,169.48,169.45,0.68]
[1762193779120,12.22,169.48,169.46,5.9010976]
[1762193779516,12.94,169.5,169.46,20.65384161]
[1762193780828,33.532,169.5,169.46,20.65384161]
[1762193781140,33.532,169.5,169.46,5.9010976]
[1762193781341,33.532,169.5,169.45,5.90140463]
[1762193781342,12.11668903,169.49,169.45,5.90140463]
[1762193781720,0.72,169.48,169.45,5.90140463]
[1762193781935,12.22,169.47,169.4,24.5467205]
[1762193782231,70.6499648,169.46,169.4,5.90318772]
[1762193782424,63.192,169.46,169.41,0.68]
[1762193783022,63.912,169.46,169.41,0.68]
[1762193783333,0.72,169.45,169.4,5.90318772]
[1762193783534,12.22,169.44,169.4,5.90318772]
[1762193783714,12.22,169.44,169.4,6.58318772]
[1762193784115,12.22,169.44,169.4,5.90318772]
[1762193784310,12.22,169.44,169.41,0.68]
[1762193784620,20.3979648,169.44,169.4,5.90318772]
[1762193785033,12.94,169.44,169.4,5.90318772]
[1762193785234,0.72,169.43,169.4,5.90318772]
[1762193785421,0.72,169.43,169.39,0.1]
[1762193785620,8.1779648,169.43,169.39,6.00344588]
[1762193785935,0.72,169.43,169.39,6.00344588]
[1762193786242,0.72,169.42,169.39,6.00344588]
[1762193786441,12.2,169.41,169.39,0.1]
[1762193786827,12.92,169.41,169.39,0.1]
[1762193787542,12.92,169.41,169.39,6.00352727]
[1762193787746,12.92,169.41,169.39,0.1]
[1762193788647,12.2,169.41,169.39,6.68342294]
[1762193788853,12.2,169.41,169.39,6.00342294]
[1762193789144,0.7,169.4,169.39,0.1]
[1762193789940,30.0969923,169.4,169.39,0.1]
[1762193790446,30.23915387,169.4,169.39,0.1]
[1762193791862,9.78882769,169.38,169.37,0.1]
[1762193792158,9.78882769,169.38,169.33,0.1]
[1762193792159,0.14216157,169.34,169.33,0.1]
[1762193792471,35.85596615,169.34,169.33,0.1]
[1762193792752,36.50596615,169.34,169.33,0.1]
[1762193792930,40.4333676,169.34,169.33,0.1]
[1762193793124,37.53156302,169.34,169.33,0.1]
[1762193793339,40.4333676,169.34,169.33,0.1]
[1762193793555,46.33864691,169.34,169.33,0.1]
[1762193793927,56.1274746,169.34,169.33,0.1]
[1762193794350,60.69878994,169.34,169.33,0.1]
[1762193794532,103.29878994,169.34,169.33,0.1]
[1762193794733,108.21901841,169.34,169.33,0.1]
[1762193795035,9.93098926,169.33,169.32,0.1]
[1762193795238,0.14216157,169.32,169.31,0.1]
[1762193795437,0.14216157,169.25,169.18,5.91077336]
[1762193795758,20.592,169.17,169.12,0.66]
[1762193795961,12.24,169.16,169.13,0.66]
[1762193796163,12.26,169.16,169.13,0.66]
[1762193796367,12.26,169.17,169.13,0.66]
[1762193796669,12.26,169.16,169.13,0.66]
[1762193797770,12.26,169.15,169.14,5.91226203]
[1762193797952,20.592,169.18,169.14,20.6929171]
[1762193798147,20.592,169.18,169.15,0.66]
[1762193798148,12.26,169.17,169.15,0.66]
[1762193798347,12.26,169.18,169.15,0.66]
[1762193799265,20.592,169.19,169.15,0.66]
[1762193799439,12.26,169.18,169.15,0.66]
[1762193800060,12.26,169.18,169.16,5.91156301]
[1762193800464,20.592,169.23,169.17,0.66]
[1762193800764,12.26,169.22,169.17,0.66]
[1762193800965,12.26,169.21,169.17,0.66]
[1762193801844,12.26,169.21,169.18,5.91086416]
[1762193802954,12.26,169.21,169.18,20.68802458]
[1762193803860,12.26,169.21,169.18,21.34802458]
[1762193804272,20.592,169.21,169.19,0.66]
[1762193804572,12.24,169.22,169.19,0.66]
[1762193805952,8.12311992,169.24,169.18,21.34802458]
[1762193806267,12.24,169.23,169.18,21.34802458]
[1762193806455,19.71311992,169.23,169.19,0.66]
[1762193806857,7.47311992,169.2,169.16,5.91156301]
[1762193807065,19.71311992,169.2,169.16,5.91156301]
[1762193807251,20.36311992,169.2,169.16,5.91156301]
[1762193807447,20.36311992,169.2,169.13,5.9126116]
[1762193807448,7.47311992,169.17,169.13,5.9126116]
[1762193807662,19.71311992,169.16,169.13,5.9126116]
[1762193808168,19.71311992,169.16,169.13,6.5726116]
[1762193808370,12.24,169.16,169.13,5.9126116]
[1762193808963,19.71311992,169.16,169.13,5.9126116]
[1762193809968,12.24,169.16,169.14,0.66]
[1762193810147,20.592,169.17,169.13,14.781529]
[1762193810352,12.24,169.16,169.13,0.66]
[1762193811659,20.592,169.16,169.13,0.66]
[1762193811874,12.24,169.16,169.13,0.66]
[1762193812271,12.24,169.16,169.14,5.91226203]
[1762193813076,20.592,169.19,169.14,5.91226203]
[1762193813077,12.24,169.18,169.14,21.3529171]
[1762193813376,20.592,169.19,169.15,0.66]
[1762193813581,5.49990335,169.24,169.15,50.66]
[1762193813771,12.24,169.23,169.16,9.78882769]
[1762193813964,12.24,169.22,169.16,10.44882769]
[1762193814288,12.89,169.22,169.17,20.6892475]
[1762193814779,12.89,169.22,169.17,21.3492475]
[1762193815155,12.24,169.22,169.18,0.66]
[1762193815569,12.89,169.22,169.17,20.6892475]
[1762193815757,12.89,169.22,169.17,21.3492475]
[1762193816174,20.592,169.22,169.19,5.9105148]
[1762193816369,37.68190335,169.22,169.13,5.9126116]
[1762193816573,5.49990335,169.21,169.15,0.66]
[1762193817279,5.49990335,169.2,169.15,0.66]
[1762193817459,4.84990335,169.18,169.13,20.6941406]
[1762193817660,17.08990335,169.19,169.14,0.66]
[1762193818179,17.73990335,169.19,169.14,0.66]
[1762193818368,17.73990335,169.19,169.15,5.9119125]
[1762193821577,20.592,169.2,169.16,0.66]
[1762193823055,5.55990335,169.19,169.13,0.7]
[1762193823360,12.22,169.18,169.13,6.61259952]
[1762193823678,12.22,169.18,169.13,21.39412852]
[1762193823876,12.22,169.18,169.14,0.7]
[1762193824756,12.22,169.2,169.14,0.7]
[1762193826464,12.22,169.2,169.15,9.78882769]
[1762193826954,12.22,169.2,169.16,0.7]
[1762193828155,42.6,169.25,169.17,9.78882769]
[1762193828376,16.11568648,169.24,169.17,9.78882769]
[1762193828582,3.89568648,169.23,169.18,0.7]
[1762193828773,32.812,169.24,169.18,0.7]
[1762193828973,3.89585604,169.23,169.18,0.7]
[1762193829160,3.89929394,169.22,169.18,0.7]
[1762193829361,16.11977367,169.21,169.18,0.7]
[1762193829661,12.22,169.21,169.18,0.7]
[1762193830782,3.90393785,169.2,169.18,0.7]
[1762193831074,12.22,169.21,169.18,0.7]
[1762193831278,3.90726848,169.2,169.18,0.7]
[1762193831598,4.89394073,169.24,169.18,0.7]
[1762193831761,20.592,169.22,169.18,0.7]
[1762193832175,3.9121135,169.21,169.18,0.7]
[1762193832382,20.592,169.22,169.18,0.7]
[1762193832582,3.91265654,169.21,169.18,0.7]
[1762193832780,20.592,169.22,169.18,0.7]
[1762193832958,3.91326225,169.21,169.18,0.7]
[1762193833159,3.91791093,169.2,169.18,0.7]
[1762193833454,20.592,169.22,169.18,0.7]
[1762193833660,3.1984013,169.21,169.19,59.78882769]
[1762193833859,5.60394073,169.3,169.22,9.78882769]
[1762193834064,0.71,169.29,169.22,9.78882769]
[1762193834392,0.71,169.29,169.22,10.23882769]
[1762193835163,5.60394073,169.29,169.22,10.23882769]
[1762193835359,0.71,169.29,169.22,10.23882769]
[1762193835692,4.89394073,169.31,169.26,9.78882769]
[1762193835863,0.71,169.31,169.25,12.24]
[1762193836065,4.89394073,169.31,169.26,9.78882769]
[1762193836283,4.89394073,169.32,169.26,10.23882769]
[1762193836674,17.84394073,169.34,169.28,9.78882769]
[1762193837180,4.89394073,169.35,169.3,9.78882769]
[1762193837483,0.71,169.35,169.3,9.78882769]
[1762193837680,0.71,169.34,169.3,9.78882769]
[1762193837885,0.71,169.36,169.3,9.78882769]
[1762193838065,4.89394073,169.37,169.3,9.78882769]
[1762193838374,0.71,169.41,169.34,9.78882769]
[1762193838562,5.60394073,169.41,169.34,22.02882769]
[1762193838764,5.60394073,169.41,169.34,22.47882769]
[1762193838965,25.48594073,169.41,169.34,22.47882769]
[1762193839179,0.71,169.4,169.34,22.47882769]
[1762193840485,5.55059335,169.4,169.31,12.69]
[1762193840677,20.592,169.37,169.31,12.24]
[1762193841286,21.302,169.37,169.31,12.24]
[1762193841484,20.592,169.36,169.31,12.24]
[1762193841865,21.302,169.36,169.31,12.24]
[1762193843492,26.14259335,169.35,169.31,12.24]
[1762193843705,0.71,169.34,169.28,22.02882769]
[1762193843994,25.43259335,169.35,169.28,12.69]
[1762193844182,25.43259335,169.35,169.26,20.592]
[1762193844183,4.84059335,169.33,169.26,9.78882769]
[1762193844380,4.84059335,169.32,169.25,0.45]
[1762193844688,4.84059335,169.31,169.24,12.24]
[1762193844866,4.84059335,169.29,169.24,12.24]
[1762193845066,25.43259335,169.28,169.2,0.45]
[1762193845287,20.592,169.26,169.2,12.69]
[1762193845680,26.14259335,169.28,169.2,12.69]
[1762193845888,12.95,169.27,169.2,12.69]
[1762193846068,4.84059335,169.26,169.2,12.24]
[1762193846268,5.55059335,169.26,169.2,12.24]
[1762193846466,5.55059335,169.25,169.17,22.02882769]
[1762193846666,0.71,169.25,169.17,22.02882769]
[1762193846893,4.0581687,169.26,169.18,0.45]
[1762193847494,0.71,169.26,169.18,0.45]
[1762193847692,5.55059335,169.25,169.17,22.02882769]
[1762193847875,0.71,169.25,169.17,22.47882769]
[1762193848075,0.71,169.24,169.17,22.47882769]
[1762193848481,0.71,169.24,169.17,22.02882769]
[1762193848789,20.592,169.2,169.17,12.24]
[1762193849703,12.24,169.23,169.18,0.45]
[1762193850095,9.78882769,169.3,169.18,0.45]
[1762193850096,0.71,169.29,169.21,9.78882769]
[1762193850269,0.71,169.29,169.22,12.24]
[1762193850469,21.302,169.29,169.21,12.73]
[1762193850669,21.302,169.29,169.22,10.23882769]
[1762193851003,0.71,169.28,169.22,10.23882769]
[1762193852295,21.302,169.28,169.22,10.23882769]
[1762193852476,21.302,169.28,169.22,9.78882769]
[1762193852673,0.71,169.27,169.22,9.78882769]
[1762193852869,0.71,169.27,169.21,12.28]
[1762193854783,21.302,169.29,169.22,0.45]
[1762193855179,20.592,169.29,169.23,9.78882769]
[1762193855397,0.71,169.31,169.23,59.78882769]
[1762193855608,0.71,169.31,169.24,0.45]
[1762193856306,0.71,169.31,169.23,59.78882769]
[1762193856483,20.592,169.3,169.24,20.68069014]
[1762193856814,0.71,169.32,169.25,22.04882769]
[1762193856984,0.71,169.32,169.26,0.45]
[1762193857305,0.71,169.32,169.27,9.78882769]
[1762193857509,0.71,169.34,169.27,10.23882769]
[1762193858204,0.71,169.34,169.24,20.68069014]
[1762193858205,9.47379741,169.34,169.24,20.68069014]
[1762193858497,20.592,169.33,169.27,5.90772139]
[1762193858682,21.302,169.33,169.27,5.90772139]
[1762193858885,0.71,169.32,169.27,5.90772139]
[1762193859918,0.71,169.32,169.27,20.67702486]